Cogmind - Beta 12 @@@ ROGUE MODE // 2023.06.03 @ 00:23:14 Player: Yallen Result: Destroyed by as-53744 with Assembled Rifle Performance ------------- Evolutions (0) 0 Regions Visited (2) 400 Robots Destroyed (9) 45 Value Destroyed (159) 159 Prototype IDs (2) 40 Alien Tech Used (0) 0 Bonus (0) 0 TOTAL SCORE: 644 Bonus ------- None Cogmind --------- Core Integrity 0/250 Matter 288/300 Energy 100/100 System Corruption 0% Temperature Cool (0) Movement Core (100) Ox1 Location -10/Mines Parts ------- > --- POWER (1) -------- (None) > --- PROPULSION (2) --- (None) > --- UTILITY (2) ------ Small Storage Unit > --- WEAPON (2) ------- Light Assault Rifle > --- INVENTORY (8) ---- Light Ion Engine Light Ion Engine Signal Interpreter Small Laser Light Assault Rifle Rocket Launcher Peak State ------------ > --- POWER ------------ Light Ion Engine > --- PROPULSION ------- Light Treads Light Treads > --- UTILITY ---------- Small Storage Unit Sensor Array > --- WEAPON ----------- Assault Rifle Light Assault Rifle > --- INVENTORY -------- Light Ion Engine Small Laser [Rating: 7] Favorites ----------- Power Light Ion Engine Engine Light Ion Engine Propulsion Light Treads Treads Light Treads Utility Small Storage Unit Device Sensor Array Storage Small Storage Unit Weapon Assault Rifle Energy Gun Small Laser Ballistic Gun Assault Rifle Build | -11 -10 -10 ------- Run | Jun Mat Min Slots Evolved . | . . . Power . | . . . Propulsion . | . . . Utility . | . . . Weapon . | . . . Parts Attached 10 | 8 1 1 Power 1 | 1 . . Engine 1 | 1 . . Core . | . . . Reactor . | . . . Propulsion 3 | 3 . . Treads 3 | 3 . . Leg . | . . . Wheel . | . . . Hover . | . . . Flight . | . . . Utility 2 | 1 1 . Device 1 | . 1 . Storage 1 | 1 . . Processor . | . . . Hackware . | . . . Protection . | . . . Artifact . | . . . Weapon 4 | 3 . 1 Energy Gun 1 | 1 . . Energy Cannon . | . . . Ballistic Gun 3 | 2 . 1 Ballistic Cannon . | . . . Launcher . | . . . Special Weapon . | . . . Impact Weapon . | . . . Slashing Weapon . | . . . Piercing Weapon . | . . . Special Melee Weapon . | . . . Unidentified Prototypes . | . . . Parts Lost 6 | . . 6 Power 1 | . . 1 Propulsion 2 | . . 2 Utility 1 | . . 1 Weapon 2 | . . 2 Highest Loss Streak 4 | . . 4 To Critical Strikes . | . . . Average Slot Usage (%) 96 | . 99 92 Engine 13 | . 14 12 Treads 27 | . 28 26 Device 13 | . 13 13 Storage 14 | . 14 14 Ballistic Gun 26 | . 28 25 Naked Turns . | . . . Heaviest Build 12 | 11 12 12 Greatest Support 40 | 40 40 40 Greatest Overweight (x) 1 | . . 1 Average Overweight (x) . | . . . Largest Inventory Capacity 8 | 8 8 8 Average Capacity 7 | 6 8 8 Most Carried 7 | 2 3 7 Average Carried 3 | 1 2 6 Final Capacity 8 | 8 8 8 Final Carried 6 | 2 3 6 Class Distribution -------------------- 100% | Mutant Dominant Class ---------------- Mutant | -10/Materials Mutant | -10/Mines Resources | -11 -10 -10 ----------- Run | Jun Mat Min Matter Collected 370 | 283 71 16 Remotely . | . . . Salvage Created 241 | 106 89 46 Parts 16 | 4 6 6 Haulers Intercepted . | . . . Recyclers Shooed . | . . . Parts Field Recycled . | . . . Retrieved Matter . | . . . Parts Self-Destructed . | . . . Prevented . | . . . Kills | -11 -10 -10 ------- Run | Jun Mat Min Combat Hostiles Destroyed 6 | . 2 4 Guns 6 | . 2 4 Classes Destroyed 5 | 2 1 2 Worker 2 | 1 1 . Recycler 1 | 1 . . Swarmer 3 | . . 3 Grunt 2 | . 2 . Demolisher 1 | . . 1 Best Kill Streak 3 | 2 2 3 Combat Bots Only 3 | . 1 3 Max Kills in Single Turn 2 | 1 1 2 Gunslinging . | . . . Exploded . | . . . Melee . | . . . Uniques/NPCs Destroyed . | . . . Combat | -11 -10 -10 -------- Run | Jun Mat Min Damage Taken 835 | . 55 780 Core 258 | . . 258 Absorbed by Shields . | . . . Core Remaining (%) 100 | 100 . . Volleys Fired 22 | 2 14 6 Largest 2 | 2 2 2 Hottest 40 | 40 40 40 Shots Fired 42 | 4 28 10 Gun 42 | 4 28 10 Cannon . | . . . Launcher . | . . . Special . | . . . Kinetic 42 | 4 28 10 Thermal . | . . . Explosive . | . . . Electromagnetic . | . . . Robot Hit Streak 4 | 3 4 3 Robot Miss Streak 6 | . 6 5 Penetration Max . | . . . Secondary Targets 1 | . . 1 Max Gunslinging Chain 1 | . . 1 Shots Hit Robots 18 | 3 11 4 Core Hits 14 | 4 5 5 Critical Kills . | . . . Critical Parts Destroyed . | . . . Critical Strikes . | . . . Melee Attacks . | . . . Impact . | . . . Slashing . | . . . Piercing . | . . . Sneak Attacks . | . . . Combat Hostiles . | . . . Follow-up Attacks . | . . . Damage Inflicted 229 | 38 147 44 Guns 229 | 38 147 44 Cannons . | . . . Explosions . | . . . Melee . | . . . Ramming . | . . . Kinetic 229 | 38 147 44 Thermal . | . . . Explosive . | . . . Electromagnetic . | . . . Impact . | . . . Slashing . | . . . Piercing . | . . . Highest Corruption . | . . . Average Corruption . | . . . Corruption Purged . | . . . Corruption Blocked . | . . . Overload Shots . | . . . Overflow Damage . | . . . Projectiles . | . . . Explosions . | . . . Melee . | . . . Knockbacks . | . . . Impact . | . . . Kinetic . | . . . Secondary . | . . . Self-Inflicted Damage . | . . . Shots . | . . . Rammed . | . . . Targets Rammed . | . . . Kicked . | . . . Crushed . | . . . Highest Temperature 6 | . 6 . Average Temperature 6 | . 6 . Received Heat Transfer 30 | . 30 . Siege Activations . | . . . Robots Corrupted . | . . . Combat Hostiles . | . . . Parts Fried . | . . . Impact Corruptions . | . . . Robots Melted . | . . . Combat Hostiles . | . . . Parts Melted . | . . . Heat Transferred . | . . . Parts Sabotaged . | . . . Parts Stolen . | . . . Parts Stripped . | . . . Power Chain Reactions . | . . . Missiles Intercepted . | . . . Alert | -11 -10 -10 ------- Run | Jun Mat Min Peak Influence 113 | 10 113 96 Initial 11 | . 6 11 Average 65 | 1 72 80 Maximum Alert Level . | . . . Low Security (%) 100 | 100 100 100 Level 1 . | . . . Level 2 . | . . . Level 3 . | . . . Level 4 . | . . . Level 5 . | . . . High Security . | . . . Max Security . | . . . Squads Dispatched 3 | . 3 . Investigation . | . . . Extermination . | . . . Reinforcement 3 | . 3 . Assault . | . . . Garrison . | . . . Intercept . | . . . Searches Triggered . | . . . Construction Impeded . | . . . Haulers Reinforced . | . . . Active Scanning Responses . | . . . Cargo Convoy Interrupts . | . . . Stealth | -11 -10 -10 --------- Run | Jun Mat Min Distress Signals 1 | . . 1 Communications Jammed . | . . . Distress Signals . | . . . Times Spotted 19 | . 6 13 Peak Tracking Total 7 | . 2 7 Tactical Retreats 1 | . . 1 Traps | -11 -10 -10 ------- Run | Jun Mat Min Traps Triggered . | . . . Indirectly . | . . . Trap Hack Attempts . | . . . Triggered . | . . . Disarmed . | . . . Reprogrammed . | . . . Reused . | . . . Traps Extracted . | . . . Installed . | . . . Triggered . | . . . Machines | -11 -10 -10 ---------- Run | Jun Mat Min Machines Disabled . | . . . Max in Single Turn . | . . . Machines Repaired . | . . . Machines Sabotaged . | . . . Overloaded Fab Kills . | . . . Hacking | -11 -10 -10 --------- Run | Jun Mat Min Machines Accessed 3 | . 3 . Terminals 3 | . 3 . Fabricators . | . . . Repair Stations . | . . . Recycling Units . | . . . Scanalyzers . | . . . Garrison Access . | . . . Total Hacks 7 | . 7 . Successful 5 | . 5 . Failed 2 | . 2 . Catastrophic . | . . . Database Lockouts . | . . . Manual . | . . . Terminals 7 | . 7 . Fabricators . | . . . Repair Stations . | . . . Recycling Units . | . . . Scanalyzers . | . . . Garrison Access . | . . . Terminal Hacks 5 | . 5 . Record 1 | . 1 . Prototype ID Bank 2 | . 2 . Security Status 1 | . 1 . Hauler Manifests 1 | . 1 . Fabricator Hacks . | . . . Repair Station Hacks . | . . . Recycling Unit Hacks . | . . . Scanalyzer . | . . . Garrison Access Hacks . | . . . Unauthorized Hacks . | . . . Terminals . | . . . Fabricators . | . . . Repair Stations . | . . . Recycling Units . | . . . Scanalyzers . | . . . Garrison Access . | . . . Data Cores Recovered . | . . . Used . | . . . Hacking Detections 2 | . 2 . Full Trace Events . | . . . Feedback Events . | . . . Feedback Blocked . | . . . Robot Schematics Acquired . | . . . Robots Built . | . . . Authchips . | . . . Time . | . . . Total Robot Build Rating . | . . . Part Schematics Acquired . | . . . Parts Built . | . . . Authchips . | . . . Time . | . . . Total Part Build Rating . | . . . Parts Repaired . | . . . Time . | . . . Parts Recycled . | . . . Recycled Matter . | . . . Retrieved Matter . | . . . Retrieved Components . | . . . Parts Scanalyzed . | . . . Part Schematics Acquired . | . . . Parts Damaged . | . . . Bothacking | -11 -10 -10 ------------ Run | Jun Mat Min Used RIF Installer . | . . . Robots Hacked . | . . . Non-combat . | . . . Combat . | . . . Robot Hacks Applied . | . . . Relay Couplers Released . | . . . Fabnet Peak Effective % . | . . . Robots Rewired . | . . . Allies Hacked . | . . . Hacks Repelled . | . . . Allies | -11 -10 -10 -------- Run | Jun Mat Min Total Allies . | . . . Largest Group . | . . . Highest-Rated Group . | . . . Highest-Rated Ally . | . . . Total Orders . | . . . Ally Attacks . | . . . Total Damage . | . . . Kills . | . . . Allies Corrupted . | . . . Allies Melted . | . . . Intel | -11 -10 -10 ------- Run | Jun Mat Min Robot Analysis Total . | . . . Derelict Logs Recovered . | . . . Drone Launches . | . . . Drone Recoveries . | . . . Exploration | -11 -10 -10 ------------- Run | Jun Mat Min Turns Passed 1226 | 182 570 474 Spaces Moved 738 | 119 331 288 Core 40 | 29 . 11 Treads 698 | 90 331 277 Legs . | . . . Wheels . | . . . Hover . | . . . Flight . | . . . Fastest Speed 50 | 50 160 100 Average Speed 154 | 133 160 157 Slowest Speed 160 | 160 160 160 Overloaded Moves . | . . . Propulsion Burnouts . | . . . Robots Hopped . | . . . Cave-ins Triggered . | . . . Exploration Rate (%) 32 | 6 38 52 Regions Visited 2 Branch Regions 1 Pre-discovered Areas . | . . . Known Exits Taken . | . . . Unknown Exits Taken 2 | 1 1 . Scrap Searched 3 | . . 3 Spaces Dug . | . . . Terrain Destroyed . | . . . Melee . | . . . Projectile . | . . . AOE . | . . . Terrain Rammed . | . . . Walls Destroyed . | . . . Machines Disabled . | . . . Actions | -11 -10 -10 --------- Run | Jun Mat Min Total 783 | 138 346 299 Wait 4 | 4 . . Move 736 | 118 330 288 Hop . | . . . Pick Up 10 | 5 1 4 Fast Attach 4 | 3 1 . Attach 5 | 4 . 1 Detach 1 | 1 . . Swap 1 | 1 . . Drop . | . . . Fire 22 | 2 14 6 Melee . | . . . Ram . | . . . Kick . | . . . Crush . | . . . Escape Stasis . | . . . Rewire . | . . . Trap . | . . . Miscellaneous . | . . . Route ------- -11/Junkyard -10/Materials -10/Mines History --------- Turn | Location | Event 59 | -11/Junkyard | Discovered new exit (range 15) 183 | -11/Junkyard | Entered Materials 304 | -10/Materials | Build established: Mutant 734 | -10/Materials | Discovered new exit (range 12) 753 | -10/Materials | Entered Mines 1115 | -10/Mines | Received a Rocket Launcher from a helpful Derelict 1126 | -10/Mines | Assembled infested the area 1177 | -10/Mines | Core integrity fell below 50% 1179 | -10/Mines | Core integrity fell below 20% 1207 | -10/Mines | Lost 4 parts (1p1n2w) 1227 | -10/Mines | Destroyed by as-53744 with Assembled Rifle Last Messages --------------- 01164_ as-37602 destroyed. 01166_ as-35102 destroyed. 01166_ as-30795 destroyed. 01166_ as-53701 destroyed. 01166_ R-06 Scavenger destroyed. 01168_ The unstable cave ceiling collapses. 01168_ Lgt. Ion Engine destroyed. 01169_ Lgt. Assault Rifle destroyed. 01170_ The unstable cave ceiling collapses. 01170_ Assault Rifle destroyed. 01170_ K-01 Serf destroyed. 01174_ The unstable cave ceiling collapses. 01176_ Lgt. Treads destroyed. 01177_ The unstable cave ceiling collapses. 01187_ D-53 Grenadier destroyed. 01190_ The unstable cave ceiling collapses. 01211_ Lgt. Treads destroyed. 01211_ Sensor Array destroyed. 01211_ Laser Drill disabled. 01215_ D-53 Grenadier destroyed. Map ----- +----------------------------------------------------+ | ?????????????????????????????????????????????????? | | ?????????????????????????????????????????????????? | | ?????????????????????????????????????????????????? | | ?????????????????????????????????????????????????? | | ?????????????????????????????????????????????????? | | ?????????????????????????????????????????????????? | | ?????????????????????????????????????????????????? | | ?????????????????????????????????????????????????? | | ?????????????????????????????????????????????????? | | ?????????????????????????????????????????????????? | | ?????????????????????????????????????????????????? | | ?????????????????????????????????????????????????? | | ??????????????????????????#??????????????????????? | | ?????????????????????????? ??????????????????????? | | ?????????????????????????? ??????????????????????? | | ????????????????????????##a??????????????????????? | | ????????????????????????[ ??????????????????????? | | ????????????????????????%[=??????????????????????? | | ????????????????????????#%#??????#####???????????? | | ????????????????????????#a#?????## ###???####### | | ????????????????????????# #????## ##### # # | | ????????????????????????#a#????# ## # | | ????????????????????????# #???## | | ????????????????????????# #??## | | ????????????????????????# #### ####### # | | ????????????????????????#@ #??# # | | ????????????????????????##### #??# | | ????????????????????????????# #??# | | ????????????????????????????# #??# | | ????????????????????????????# #?### | | ???????????????????????????# #???# | | ???????????????????????????# " ##???# # | | ???????????????????????????# """ ##????## | | ???????????????????????????# ##??????## ## | | ???????????????????????????## ##????????#####? | | ????????????????????????????## ##??????????????? | | ?????????????????????????????### #??????????###### | | ???????????????????????????????# #?????????## # | | ???????????????????????????????# #??????#### | | ???????????????????????????????# #?????# | | ???????????????????????????????? ????### ### # | | ?????????????????????????????????????# ???### # | | ????????????????????????????????????? ?????# # | | ?????????????????????????????????????# #?????# # | | ?????????????????????????????????????# #?????# # | | ???????????????????????????????????### #?????# # | | ??????????????????????????????????## #?????# | | ?????????????????????????????????## ##????# # | | ?????????????????????? ######### ##???# # | | ????????????????????? #???# # | +----------------------------------------------------+ Best States ------------- Heat Dissipation 25 Energy Generation 10 Energy Capacity 125 Matter Stores 300 Matter Capacity 300 Sight Range 16 Robot Scan Range 14 Terrain Scan Density 10 Evasion (%) 50 Recoil Reduction 2 Item Schematics ----------------- None Robot Schematics ------------------ None Fabricated ------------ Nothing Alien Tech Used ----------------- None Achievements -------------- None Challenges ------------ None Game ------ Seed ColdLightningFemtoactuators Manual? 0 Play Time 00:21:06 Cumulative 16.6 hours Start 2023.06.03 @ 00:00:46 End 2023.06.03 @ 00:23:14 Sessions 1 Manual Loads 0 Difficulty Rogue Special Mode None Game No. 12 Rogue 11 Adventurer 1 Explorer 0 Win Type - Total 1 Types 1/0/0/0/0/0/0/0/0 Lore% 6 Gallery% 24 Achievement% 22 Wizard Run 0 Options --------- ASCII 0 Keyboard 1 Movement Arrows Keybinds 0 Fullscreen 1 Font 18/SmallcapsGlow Map View 76x50 Tactical HUD 1 Map Filters NONE Filters NONE Steam 1 RUN: aee5f856-1ba5-4465-84c5-0bb92a4e40cb